fUSD/lending_fUSD_20250820
["ID","MTS","AMOUNT","RATE_DAILY","PERIOD"]
[380349018,1755700144739,-1833.47,0.0003041,120]
[380349019,1755700144782,-1430.18,0.0003041,120]
[380349020,1755700144830,-400.0,0.0003041,120]
[380349021,1755700144871,-400.0,0.0003041,120]
[380349022,1755700144916,-400.0,0.0003041,120]
[380349023,1755700144968,-451.95,0.0003041,120]
[380349024,1755700145013,-400.0,0.0003041,120]
[380349025,1755700145060,-1965.19,0.0003041,120]
[380349026,1755700145104,-400.0,0.0003041,120]
[380349027,1755700145149,-400.0,0.0003041,120]
[380349028,1755700145196,-1775.23,0.0003041,120]
[380349029,1755700145242,-400.0,0.0003041,120]
[380349030,1755700145287,-2149.65,0.0003041,120]
[380349031,1755700145334,-1318.6,0.0003041,120]
[380349032,1755700145379,-400.0,0.0003041,120]
[380349033,1755700145423,-529.75,0.0003041,120]
[380349034,1755700145469,-1078.84,0.0003041,120]
[380349035,1755700145512,-1324.97,0.0003041,120]
[380349036,1755700145557,-400.0,0.0003041,120]
[380349037,1755700145600,-1907.19,0.0003041,120]
[380349038,1755700145645,-614.17,0.0003041,120]
[380349039,1755700145692,-1562.49,0.0003041,120]
[380349040,1755700145738,-400.0,0.0003041,120]
[380349041,1755700145782,-400.0,0.0003041,120]
[380349042,1755700145837,-400.0,0.0003041,120]
[380349043,1755700145883,-400.0,0.0003041,120]
[380349044,1755700145927,-425.08,0.0003041,120]
[380349045,1755700145972,-1544.03,0.0003041,120]
[380349046,1755700146019,-2066.97,0.0003041,120]
[380349047,1755700146066,-400.0,0.0003041,120]
[380349048,1755700146111,-400.0,0.0003041,120]
[380349049,1755700146161,-1722.47,0.0003041,120]
[380349050,1755700146209,-400.0,0.0003041,120]
[380349051,1755700146255,-2150.63,0.0003041,120]
[380349052,1755700146300,-400.0,0.0003041,120]
[380349053,1755700146346,-1072.65,0.0003041,120]
[380349054,1755700146391,-400.0,0.0003041,120]
[380349055,1755700146442,-1412.53,0.0003041,120]
[380349056,1755700146488,-1626.0,0.0003041,120]
[380349057,1755700146536,-1231.62,0.0003041,120]
[380349058,1755700146581,-2904.15,0.0003041,120]
[380349059,1755700146628,-2021.92,0.0003041,120]
[380349060,1755700146674,-1747.42,0.0003041,120]
[380349061,1755700147088,-400.0,0.0003041,120]
[380349062,1755700147135,-513.05347963,0.0003041,60]
[380349063,1755700147192,-1257.16,0.0003041,120]
[380349064,1755700147242,-400.0,0.0003041,120]
[380349065,1755700147288,-1051.37,0.0003041,120]
[380349066,1755700147330,-1521.16,0.0003041,120]
[380349067,1755700147369,-1646.99,0.0003041,120]
[380349068,1755700147408,-492.24,0.0003041,120]
[380349069,1755700147449,-400.0,0.0003041,120]
[380349070,1755700147488,-400.0,0.0003041,120]
[380349071,1755700147526,-1815.85,0.0003041,120]
[380349072,1755700147566,-2141.63,0.0003041,120]
[380349073,1755700147605,-400.0,0.0003041,120]
[380349074,1755700147642,-400.0,0.0003041,120]
[380349075,1755700147683,-1360.39,0.0003041,120]
[380349076,1755700147721,-400.0,0.0003041,120]
[380349077,1755700147761,-400.0,0.0003041,120]
[380349078,1755700147800,-1458.12,0.0003041,120]
[380349079,1755700147838,-400.0,0.0003041,120]
[380349080,1755700147877,-400.0,0.0003041,120]
[380349081,1755700147917,-1049.68,0.0003041,120]
[380349082,1755700147957,-400.0,0.0003041,120]
[380349083,1755700147998,-400.0,0.0003041,120]
[380349084,1755700148040,-1005.32,0.0003041,120]
[380349085,1755700148085,-3717.05,0.0003041,120]
[380349086,1755700148128,-2150.02,0.0003041,120]
[380349087,1755700148172,-1449.6,0.0003041,120]
[380349088,1755700148215,-400.0,0.0003041,120]
[380349089,1755700148259,-400.0,0.0003041,120]
[380349090,1755700148304,-400.0,0.0003041,120]
[380349091,1755700148352,-1175.46,0.0003041,120]
[380349092,1755700148397,-3065.6,0.0003041,120]
[380349093,1755700148439,-400.0,0.0003041,120]
[380349094,1755700148483,-400.0,0.0003041,120]
[380349095,1755700148525,-400.0,0.0003041,120]
[380349096,1755700148573,-1076.71,0.0003041,120]
[380349097,1755700148617,-400.0,0.0003041,120]
[380349098,1755700148660,-1045.35,0.0003041,120]
[380349099,1755700148706,-574.48,0.0003041,120]
[380349100,1755700148749,-849.92,0.0003041,120]
[380349101,1755700148792,-285.6619756,0.0003041,120]
[380349102,1755700148834,-690.82,0.0003041,120]
[380349103,1755700148877,-400.0,0.0003041,120]
[380349104,1755700148924,-2083.85,0.0003041,120]
[380349105,1755700148968,-3969.05,0.0003041,120]
[380349106,1755700149014,-400.0,0.0003041,120]
[380349107,1755700149060,-400.0,0.0003041,120]
[380349108,1755700149107,-1954.83,0.0003041,120]
[380349109,1755700149152,-1350.03,0.0003041,120]
[380349110,1755700149204,-400.0,0.0003041,120]
[380349111,1755700149249,-400.0,0.0003041,120]
[380349112,1755700149293,-404.82,0.0003041,120]
[380349113,1755700149339,-400.0,0.0003041,120]
[380349114,1755700149385,-2260.72,0.0003041,120]
[380349115,1755700149429,-1572.81,0.0003041,120]
[380349116,1755700149472,-964.9,0.0003041,120]
[380349117,1755700149514,-400.0,0.0003041,120]
[380349118,1755700149557,-1057.72,0.0003041,120]
[380349119,1755700149600,-400.0,0.0003041,120]
[380349120,1755700149645,-1849.28,0.0003041,120]
[380349121,1755700149690,-1287.79,0.0003041,120]
[380349122,1755700149747,-400.0,0.0003041,120]
[380349123,1755700149793,-2146.59,0.0003041,120]
[380349124,1755700149836,-400.0,0.0003041,120]
[380349125,1755700149880,-400.0,0.0003041,120]
[380349126,1755700149925,-1393.92,0.0003041,120]
[380349127,1755700149971,-2312.24,0.0003041,120]
[380349128,1755700150014,-1401.31,0.0003041,120]
[380349129,1755700150059,-400.0,0.0003041,120]
[380349130,1755700150106,-1046.53,0.0003041,120]
[380349131,1755700150151,-490.32,0.0003041,120]
[380349132,1755700150198,-1337.1,0.0003041,120]
[380349133,1755700150245,-1109.75,0.0003041,120]
[380349134,1755700150292,-5666.59,0.0003041,120]
[380349135,1755700150336,-400.0,0.0003041,120]
[380349136,1755700150382,-1954.65,0.0003041,120]
[380349137,1755700150434,-4175.16,0.0003041,120]
[380349138,1755700150483,-1192.5,0.0003041,120]
[380349139,1755700150529,-226.97931901,0.0003041,120]
[380349140,1755700150581,-400.0,0.0003041,120]
[380349141,1755700150629,-400.0,0.0003041,120]
[380349142,1755700150680,-777.94,0.0003041,120]
[380349143,1755700150726,-400.0,0.0003041,120]
[380349144,1755700150771,-1090.09,0.0003041,120]
[380349145,1755700150820,-400.0,0.0003041,120]
[380349146,1755700150864,-1888.82,0.0003041,120]
[380349147,1755700150909,-400.0,0.0003041,120]
[380349148,1755700150955,-400.0,0.0003041,120]
[380349149,1755700150999,-1651.59,0.0003041,120]
[380349150,1755700151045,-2523.96,0.0003041,120]
[380349151,1755700151090,-1351.77,0.0003041,120]
[380349152,1755700151133,-400.0,0.0003041,120]
[380349153,1755700151181,-651.77,0.0003041,120]
[380349154,1755700151879,-400.0,0.0003041,120]
[380349155,1755700151925,-400.0,0.0003041,120]
[380349156,1755700151968,-1141.58,0.0003041,120]
[380349157,1755700152015,-1415.48,0.0003041,120]
[380349158,1755700152058,-400.0,0.0003041,120]
[380349159,1755700152107,-1063.5,0.0003041,120]
[380349160,1755700152157,-400.0,0.0003041,120]
[380349161,1755700152210,-400.0,0.0003041,120]
[380349162,1755700152260,-1461.68,0.0003041,120]
[380349163,1755700152308,-1185.59,0.0003041,120]
[380349164,1755700152352,-987.19,0.0003041,120]
[380349165,1755700152396,-1509.63,0.0003041,120]
[380349166,1755700152439,-400.0,0.0003041,120]
[380349167,1755700152483,-400.0,0.0003041,120]
[380349168,1755700152525,-1670.68,0.0003041,120]
[380349169,1755700152569,-2318.62,0.0003041,120]
[380349170,1755700152615,-1195.06,0.0003041,120]
[380349171,1755700152660,-400.0,0.0003041,120]
[380349172,1755700152705,-1584.03,0.0003041,120]
[380349173,1755700152752,-400.0,0.0003041,120]
[380349174,1755700152802,-888.43,0.0003041,120]
[380349175,1755700152844,-400.0,0.0003041,120]
[380349176,1755700152885,-882.98,0.0003041,120]
[380349177,1755700152927,-1716.91,0.0003041,120]
[380349178,1755700152969,-850.08,0.0003041,120]
[380349179,1755700153011,-1059.98,0.0003041,120]
[380349180,1755700153058,-400.0,0.0003041,120]
[380349181,1755700153104,-400.0,0.0003041,120]
[380349182,1755700153150,-1093.8,0.0003041,120]
[380349183,1755700153196,-400.0,0.0003041,120]
[380349184,1755700153243,-1223.83,0.0003041,120]
[380349185,1755700153288,-400.0,0.0003041,120]
[380349186,1755700153334,-1062.6,0.0003041,120]
[380349187,1755700153383,-1380.64,0.0003041,120]
[380349188,1755700153436,-1329.25,0.0003041,120]
[380349189,1755700153488,-400.0,0.0003041,120]
[380349190,1755700153534,-400.0,0.0003041,120]
[380349191,1755700153576,-400.0,0.0003041,120]
[380349192,1755700153619,-1256.94,0.0003041,120]
[380349193,1755700153660,-1319.34,0.0003041,120]
[380349194,1755700153702,-405.04,0.0003041,120]
[380349195,1755700153742,-442.06723587,0.0003041,120]
[380349196,1755700153784,-1366.95,0.0003041,120]
[380349197,1755700153823,-1427.7,0.0003041,120]
[380349198,1755700153869,-1219.11,0.0003041,120]
[380349199,1755700153910,-534.50950816,0.0003041,120]
[380349200,1755700153950,-900.64,0.0003041,120]
[380349201,1755700153992,-550.58,0.0003041,120]
[380349202,1755700154035,-400.0,0.0003041,120]
[380349203,1755700154077,-400.0,0.0003041,120]
[380349204,1755700154118,-400.0,0.0003041,120]
[380349205,1755700154159,-400.0,0.0003041,120]
[380349206,1755700154202,-596.52,0.0003041,120]
[380349207,1755700154246,-1625.15,0.0003041,120]
[380349208,1755700154291,-400.0,0.0003041,120]
[380349209,1755700154334,-1235.79,0.0003041,120]
[380349210,1755700154377,-400.0,0.0003041,120]
[380349211,1755700154421,-2036.03,0.0003041,120]
[380349212,1755700154465,-4322.84,0.0003041,120]
[380349213,1755700154509,-1322.22,0.0003041,120]
[380349214,1755700154551,-4566.82,0.0003041,120]
[380349215,1755700154592,-1677.08,0.0003041,120]
[380349216,1755700154634,-1457.3,0.0003041,120]
[380349217,1755700154675,-400.0,0.0003041,120]
[380349218,1755700154720,-774.8,0.0003041,120]
[380349219,1755700154762,-400.0,0.0003041,120]
[380349220,1755700154805,-1147.0,0.0003041,120]
[380349221,1755700154848,-400.0,0.0003041,120]
[380349222,1755700154890,-632.18,0.0003041,120]
[380349223,1755700154935,-400.0,0.0003041,120]
[380349224,1755700154984,-3215.76,0.0003041,120]
[380349225,1755700155030,-965.61,0.0003041,120]
[380349226,1755700155075,-891.52,0.0003041,120]
[380349227,1755700155124,-836.71,0.0003041,120]
[380349228,1755700155175,-1921.66,0.0003041,120]
[380349229,1755700155225,-4159.08,0.0003041,120]
[380349230,1755700155271,-400.0,0.0003041,120]
[380349231,1755700155494,-979.77,0.0003041,120]
[380349232,1755700155543,-725.45,0.0003041,120]
[380349233,1755700155585,-400.0,0.0003041,120]
[380349234,1755700155629,-400.0,0.0003041,120]
[380349235,1755700155672,-988.36,0.0003041,120]
[380349236,1755700155716,-400.0,0.0003041,120]
[380349237,1755700155760,-1048.22,0.0003041,120]
[380349238,1755700155804,-1250.56,0.0003041,120]
[380349239,1755700155847,-400.0,0.0003041,120]
[380349240,1755700155888,-1629.79,0.0003041,120]
[380349241,1755700155930,-400.0,0.0003041,120]
[380349242,1755700155969,-856.89,0.0003041,120]
[380349243,1755700156010,-430.083725,0.0003041,120]
[380349244,1755700156051,-2302.35,0.0003041,120]
[380349245,1755700156094,-587.24,0.0003041,120]
[380349246,1755700156138,-400.0,0.0003041,120]
[380349247,1755700156181,-2205.01,0.0003041,120]
[380349248,1755700156222,-400.0,0.0003041,120]
[380349249,1755700156264,-4746.52,0.0003041,120]
[380349250,1755700156303,-483.51,0.0003041,120]
[380349251,1755700156344,-400.0,0.0003041,90]
[380349252,1755700156391,-400.0,0.0003041,120]
[380349253,1755700156433,-1033.58,0.0003041,120]
[380349254,1755700156474,-1518.06,0.0003041,60]
[380349255,1755700156515,-554.54,0.0003041,120]
[380349256,1755700156556,-400.0,0.0003041,120]
[380349257,1755700156599,-938.32,0.0003041,120]
[380349258,1755700156641,-1148.26,0.0003041,120]
[380349259,1755700156685,-400.0,0.0003041,120]
[380349260,1755700156732,-2875.34,0.0003041,120]
[380349261,1755700156782,-400.0,0.0003041,120]
[380349262,1755700156835,-400.0,0.0003041,120]
[380349263,1755700156878,-1222.0,0.0003041,120]
[380349264,1755700156921,-1222.92,0.0003041,120]
[380349265,1755700156964,-1453.11,0.0003041,120]
[380349266,1755700157005,-400.0,0.0003041,120]
[380349267,1755700157047,-1189.39,0.0003041,120]
[380349268,1755700157088,-400.0,0.0003041,120]
[380349269,1755700157130,-400.0,0.0003041,120]
[380349270,1755700157172,-3504.83,0.0003041,120]
[380349271,1755700157216,-400.0,0.0003041,120]
[380349272,1755700157266,-258.57158739,0.0003041,120]
[380349273,1755700157308,-493.6,0.0003041,120]
[380349274,1755700157350,-400.0,0.0003041,120]
[380349275,1755700157391,-400.0,0.0003041,120]
[380349276,1755700157434,-400.0,0.0003041,120]
[380349277,1755700157476,-1428.29,0.0003041,120]
[380349278,1755700157514,-1746.86,0.0003041,120]
[380349279,1755700157553,-400.0,0.0003041,120]
[380349280,1755700157592,-1168.29,0.0003041,120]
[380349281,1755700157631,-285.347596,0.0003041,120]
[380349282,1755700157670,-400.0,0.0003041,120]
[380349283,1755700157710,-400.0,0.0003041,120]
[380349284,1755700157752,-1895.84,0.0003041,120]
[380349285,1755700157794,-400.0,0.0003041,120]
[380349286,1755700157836,-400.0,0.0003041,120]
[380349287,1755700157875,-1235.33,0.0003041,120]
[380349288,1755700157916,-400.0,0.0003041,120]
[380349289,1755700157955,-400.0,0.0003041,120]
[380349290,1755700157992,-400.0,0.0003041,120]
[380349291,1755700158033,-1374.42,0.0003041,120]
[380349292,1755700158077,-1021.76,0.0003041,120]
[380349293,1755700158120,-400.0,0.0003041,120]
[380349294,1755700158167,-400.0,0.0003041,120]
[380349295,1755700158219,-1460.31,0.0003041,120]
[380349296,1755700158270,-400.0,0.0003041,120]
[380349297,1755700158320,-1172.69,0.0003041,120]
[380349298,1755700158369,-400.0,0.0003041,120]
[380349299,1755700158410,-400.0,0.0003041,120]
[380349300,1755700158452,-4644.94,0.0003041,120]
[380349301,1755700158490,-400.0,0.0003041,120]
[380349302,1755700158529,-400.0,0.0003041,120]
[380349303,1755700158571,-535.5,0.0003041,120]
[380349304,1755700158613,-504.27,0.0003041,120]
[380349305,1755700158654,-1186.21,0.0003041,120]
[380349306,1755700158695,-1455.68,0.0003041,120]
[380349307,1755700158737,-400.0,0.0003041,120]
[380349308,1755700158781,-732.83,0.0003041,120]
[380349309,1755700158826,-1357.14,0.0003041,120]
[380349310,1755700158864,-400.0,0.0003041,120]
[380349311,1755700158905,-400.0,0.0003041,120]
[380349312,1755700158943,-1726.21,0.0003041,120]
[380349313,1755700158983,-2102.58,0.0003041,120]
[380349314,1755700159023,-400.0,0.0003041,120]
[380349315,1755700159065,-400.0,0.0003041,120]
[380349316,1755700159108,-2579.09,0.0003041,120]
[380349317,1755700159153,-1089.34,0.0003041,120]
[380349318,1755700159197,-1648.88,0.0003041,120]
[380349319,1755700159241,-888.5,0.0003041,120]
[380349320,1755700159287,-1271.31,0.0003041,120]
[380349321,1755700159330,-400.0,0.0003041,120]
[380349322,1755700159376,-454.37,0.0003041,120]
[380349323,1755700159420,-1843.08,0.0003041,120]
[380349324,1755700159467,-2559.38,0.0003041,120]
[380349325,1755700159512,-1459.02,0.0003041,120]
[380349326,1755700159557,-400.0,0.0003041,120]
[380349327,1755700159603,-400.0,0.0003041,120]
[380349328,1755700159648,-2008.0,0.0003041,120]
[380349329,1755700159693,-1258.12,0.0003041,120]
[380349330,1755700159737,-446.94757374,0.0003041,120]
[380349331,1755700159784,-2212.32,0.0003041,120]
[380349332,1755700159830,-1338.65,0.0003041,120]
[380349333,1755700159873,-697.15,0.0003041,120]
[380349334,1755700159918,-400.0,0.0003041,120]
[380349335,1755700159963,-2348.17,0.0003041,120]
[380349336,1755700160006,-433.07,0.0003041,120]
[380349337,1755700160051,-400.0,0.0003041,120]
[380349338,1755700160094,-2511.82,0.0003041,120]
[380349339,1755700160149,-7676.64,0.0003041,120]
[380349340,1755700160195,-400.0,0.0003041,120]
[380349341,1755700160238,-400.0,0.0003041,120]
[380349342,1755700160281,-400.0,0.0003041,120]
[380349343,1755700160325,-827.06,0.0003041,120]
[380349344,1755700160368,-400.0,0.0003041,120]
[380349345,1755700160409,-1065.0,0.0003041,120]
[380349346,1755700160451,-2048.44,0.0003041,120]
[380349347,1755700160768,-2815.28,0.0003041,120]
[380349348,1755700160817,-462.08,0.0003041,120]
[380349349,1755700160860,-400.0,0.0003041,120]
[380349350,1755700160900,-582.77,0.0003041,120]
[380349351,1755700160939,-4908.75,0.0003041,120]
[380349352,1755700160979,-849.36,0.0003041,120]
[380349353,1755700161020,-400.0,0.0003041,120]
[380349354,1755700161061,-400.0,0.0003041,120]
[380349355,1755700161102,-400.0,0.0003041,120]
[380349356,1755700161142,-1514.95,0.0003041,120]
[380349357,1755700161186,-500.0,0.00030684,60]
[380349358,1755700161226,-554.0,0.00030684,60]
[380349359,1755700161266,-500.0,0.00030684,60]
[380349360,1755700161307,-403.72950289,0.00030684,60]
[380349361,1755700161345,-200.0,0.00030684,60]
[380349362,1755700161385,-200.0,0.00030684,60]
[380349363,1755700161425,-200.0,0.00030684,60]
[380349364,1755700161469,-373.71,0.00030684,60]
[380349365,1755700161507,-255.46693242,0.00030684,120]
[380349366,1755700161548,-503.91,0.00030684,120]
[380349367,1755700161586,-477.63,0.00030684,120]
[380349368,1755700161625,-585.96,0.00030684,120]
[380349369,1755700161662,-1132.37,0.00030684,120]
[380349370,1755700161699,-871.46,0.00030684,120]
[380349371,1755700161736,-400.0,0.00030684,120]
[380349372,1755700161773,-682.28,0.00030684,120]
[380349373,1755700161824,-400.0,0.00030684,120]
[380349374,1755700161865,-400.0,0.00030684,120]
[380349375,1755700161905,-458.84,0.00030684,120]
[380349376,1755700161944,-467.95,0.00030684,120]
[380349377,1755700161984,-400.0,0.00030684,120]
[380349378,1755700162022,-400.0,0.00030684,120]
[380349379,1755700162060,-400.0,0.00030684,120]
[380349380,1755700162100,-624.37,0.00030684,120]
[380349381,1755700162139,-400.0,0.00030684,120]
[380349382,1755700162179,-1549.76,0.00030684,120]
[380349383,1755700162221,-400.0,0.00030684,120]
[380349384,1755700162263,-1055.93,0.00030684,120]
[380349385,1755700162308,-400.0,0.00030684,120]
[380349386,1755700162353,-596.73,0.00030684,120]
[380349387,1755700162397,-400.0,0.00030684,120]
[380349388,1755700162441,-400.0,0.00030684,120]
[380349389,1755700162480,-400.0,0.00030684,120]
[380349390,1755700162519,-920.01,0.00030684,120]
[380349391,1755700162558,-400.0,0.00030684,120]
[380349392,1755700162597,-1043.57,0.00030684,120]
[380349393,1755700162637,-400.0,0.00030684,120]
[380349394,1755700162677,-400.0,0.00030684,120]
[380349395,1755700162722,-1381.26,0.00030684,120]
[380349396,1755700162766,-1018.06,0.00030684,120]
[380349397,1755700162815,-1345.25,0.00030684,120]
[380349398,1755700162858,-400.0,0.00030684,120]
[380349399,1755700162901,-871.26,0.00030684,120]
[380349400,1755700162947,-400.0,0.00030684,120]
[380349401,1755700162988,-1041.3,0.00030684,120]
[380349402,1755700163041,-400.0,0.00030684,120]
[380349403,1755700163091,-400.0,0.00030684,120]
[380349404,1755700163143,-400.0,0.00030684,120]
[380349405,1755700163193,-528.62,0.00030684,120]
[380349406,1755700163239,-1201.73,0.00030684,120]
[380349407,1755700163286,-400.0,0.00030684,120]
[380349408,1755700163332,-400.0,0.00030684,120]
[380349409,1755700163378,-484.87,0.00030684,120]
[380349410,1755700163420,-400.0,0.00030684,120]
[380349411,1755700163466,-1565.72,0.00030684,120]
[380349412,1755700163507,-400.0,0.00030684,120]
[380349413,1755700163549,-400.0,0.00030684,120]
[380349414,1755700163592,-1756.67,0.00030684,120]
[380349415,1755700163634,-915.95,0.00030684,120]
[380349416,1755700163676,-607.93,0.00030684,120]
[380349417,1755700163718,-1872.94,0.00030684,120]
[380349418,1755700163759,-870.99,0.00030684,120]
[380349419,1755700163800,-454.84,0.00030684,120]
[380349420,1755700163842,-1433.11,0.00030684,120]
[380349421,1755700163884,-577.67,0.00030684,120]
[380349422,1755700163926,-400.0,0.00030684,120]
[380349423,1755700163974,-400.0,0.00030684,120]
[380349424,1755700164018,-567.4,0.00030684,120]
[380349425,1755700164066,-751.55,0.00030684,120]
[380349426,1755700164111,-2883.89,0.00030684,120]
[380349427,1755700164159,-982.98,0.00030684,120]
[380349428,1755700164208,-400.0,0.00030684,120]
[380349429,1755700164253,-400.0,0.00030684,120]
[380349430,1755700164295,-673.24,0.00030684,120]
[380349431,1755700164338,-400.0,0.00030684,120]
[380349432,1755700164379,-400.0,0.00030684,120]
[380349433,1755700164419,-400.0,0.00030684,120]
[380349434,1755700164467,-400.0,0.00030684,120]
[380349435,1755700164518,-1470.83,0.00030684,120]
[380349436,1755700164559,-1624.75,0.00030684,120]
[380349437,1755700164600,-1923.96,0.00030684,120]
[380349438,1755700164640,-403.42,0.00030684,120]
[380349439,1755700164680,-400.0,0.00030684,120]
[380349440,1755700165056,-665.05,0.00030684,120]
[380349441,1755700165165,-400.0,0.00030684,120]
[380349442,1755700165207,-400.0,0.00030684,120]
[380349443,1755700165249,-1205.51,0.00030684,120]
[380349444,1755700165290,-400.0,0.00030684,120]
[380349445,1755700165332,-400.0,0.00030684,120]
[380349446,1755700165375,-415.67,0.00030684,120]
[380349447,1755700165420,-466.52,0.00030684,120]
[380349448,1755700165473,-543.8190762,0.00030684,120]
[380349449,1755700165516,-441.13,0.00030684,120]
[380349450,1755700165559,-400.0,0.00030684,120]
[380349451,1755700165601,-579.5,0.00030684,60]
[380349452,1755700165644,-739.07,0.00030684,120]
[380349453,1755700165688,-400.0,0.00030684,120]
[380349454,1755700165731,-1421.29,0.00030684,120]
[380349455,1755700165772,-400.0,0.00030684,120]
[380349456,1755700165816,-1328.21,0.00030684,120]
[380349457,1755700165859,-400.0,0.00030684,120]
[380349458,1755700165900,-436.43,0.00030684,120]
[380349459,1755700165943,-1991.27,0.00030684,120]
[380349460,1755700165984,-400.0,0.00030684,120]
[380349461,1755700166027,-1364.0,0.00030684,120]
[380349462,1755700166068,-1424.81,0.00030684,120]
[380349463,1755700166111,-1513.36,0.00030684,120]
[380349464,1755700166152,-400.0,0.00030684,120]
[380349465,1755700166194,-400.0,0.00030684,120]
[380349466,1755700166234,-898.3,0.00030684,120]
[380349467,1755700166278,-1560.84,0.00030684,120]
[380349468,1755700166322,-400.0,0.00030684,120]
[380349469,1755700166362,-472.94,0.00030684,120]
[380349470,1755700166401,-1801.53,0.00030684,120]
[380349471,1755700166443,-707.49,0.00030684,120]
[380349472,1755700166484,-1443.67,0.00030684,120]
[380349473,1755700166524,-1257.44,0.00030684,120]
[380349474,1755700166563,-1411.87,0.00030684,120]
[380349475,1755700166602,-400.0,0.00030684,120]
[380349476,1755700166641,-400.0,0.00030684,120]
[380349477,1755700166683,-400.0,0.00030684,120]
[380349478,1755700166725,-2453.72,0.00030684,120]
[380349479,1755700166764,-485.07,0.00030684,120]
[380349480,1755700166801,-400.0,0.00030684,120]
[380349481,1755700166837,-1082.25,0.00030684,120]
[380349482,1755700166874,-981.42,0.00030684,120]
[380349483,1755700166911,-400.0,0.00030684,120]
[380349484,1755700166948,-1395.57,0.00030684,120]
[380349485,1755700166987,-1028.52,0.00030684,120]
[380349486,1755700167028,-555.36,0.00030684,120]
[380349487,1755700167069,-1450.48,0.00030684,120]
[380349488,1755700167109,-806.44,0.00030684,120]
[380349489,1755700167151,-400.0,0.00030684,120]
[380349490,1755700167195,-978.48,0.00030684,120]
[380349491,1755700167237,-815.46,0.00030684,120]
[380349492,1755700167282,-1379.0,0.00030684,120]
[380349493,1755700167326,-796.64,0.00030684,120]
[380349494,1755700167368,-798.55,0.00030684,120]
[380349495,1755700167413,-1745.07,0.00030684,120]
[380349496,1755700167456,-470.51,0.00030684,120]
[380349497,1755700167504,-400.0,0.00030684,120]
[380349498,1755700167553,-400.0,0.00030684,120]
[380349499,1755700167597,-400.0,0.00030684,120]
[380349500,1755700167640,-2107.63,0.00030684,120]
[380349501,1755700167681,-585.45,0.00030684,120]
[380349502,1755700167734,-400.0,0.00030684,120]
[380349503,1755700167783,-400.0,0.00030684,120]
[380349504,1755700167837,-1155.56,0.00030684,120]
[380349505,1755700167876,-400.0,0.00030684,120]
[380349506,1755700167914,-400.0,0.00030684,120]
[380349507,1755700167952,-400.0,0.00030684,120]
[380349508,1755700167988,-400.0,0.00030684,120]
[380349509,1755700168032,-400.0,0.00030684,120]
[380349510,1755700168080,-400.0,0.00030684,120]
[380349511,1755700168128,-400.0,0.00030684,120]
[380349512,1755700168173,-547.86,0.00030684,120]
[380349513,1755700168219,-400.0,0.00030684,120]
[380349514,1755700168260,-400.0,0.00030684,120]
[380349515,1755700168302,-400.0,0.00030684,120]
[380349516,1755700168343,-400.0,0.00030684,120]
[380349517,1755700168384,-400.0,0.00030684,120]